bitfinex-derivatives/quotes_ETHF0:USTF0_20240928
["timestamp","ask_amount","ask_price","bid_price","bid_amount"]
[1727503700996,0.37248,2684.0,2683.9,0.4005]
[1727503701492,0.298,2684.2,2683.9,0.77298]
[1727503701493,0.37247,2684.1,2683.9,0.77298]
[1727503701891,0.67046,2684.2,2683.9,0.77298]
[1727503702100,0.298,2684.2,2683.9,0.4005]
[1727503702602,0.298,2684.2,2683.9,0.77298]
[1727503702603,0.37247,2684.1,2683.9,0.77298]
[1727503702792,0.67046,2684.2,2684.0,0.37248]
[1727503702993,0.37247,2684.1,2684.0,1.34]
[1727503703394,0.298,2684.2,2684.0,1.34]
[1727503703395,0.67046,2684.2,2684.0,1.34]
[1727503703590,0.37247,2684.1,2684.0,1.34]
[1727503703790,0.37248,2684.0,2683.7,0.97691677]
[1727503703992,0.37248,2684.0,2683.6,0.3982]
[1727503703993,0.37252,2683.7,2683.6,0.3982]
[1727503704295,3.9551,2683.9,2683.6,0.3982]
[1727503704502,3.2078,2683.9,2683.7,0.37252]
[1727503704699,3.2078,2683.9,2683.7,0.37251]
[1727503705102,3.2078,2683.9,2683.7,1.34]
[1727503705401,3.2078,2683.9,2683.8,0.4048]
[1727503705997,0.3766,2684.0,2683.8,1.7448]
[1727503706201,0.298,2684.2,2684.0,0.37247]
[1727503706398,0.298,2684.2,2684.1,0.393]
[1727503706602,0.298,2684.2,2684.1,0.76547]
[1727503708506,0.298,2684.2,2684.1,0.393]
[1727503708699,0.298,2684.2,2684.1,0.76547]
[1727503710307,0.67045,2684.2,2684.1,0.393]
[1727503710506,0.6938,2684.2,2684.1,0.393]
[1727503711400,1.06625,2684.2,2684.1,0.393]
[1727503714401,0.37248,2684.1,2683.9,0.37249]
[1727503714601,0.37248,2684.1,2683.9,0.401]
[1727503714807,0.37248,2684.0,2683.9,0.401]
[1727503717013,0.37247,2684.1,2683.9,0.77349]
[1727503718107,2.0338,2684.2,2683.9,0.401]
[1727503718311,0.37247,2684.1,2683.9,0.77349]
[1727503718511,1.06626,2684.2,2684.0,0.37248]
[1727503718716,0.37247,2684.1,2683.9,0.77348]
[1727503721015,0.37248,2684.0,2683.9,0.401]
[1727503721213,0.37248,2684.1,2683.9,0.77349]
[1727503721809,0.37248,2684.0,2683.9,0.401]
[1727503722011,0.37248,2684.0,2683.8,0.3725]
[1727503722211,0.7591,2683.9,2683.8,0.3725]
[1727503724310,1.13159,2683.9,2683.7,0.76041]
[1727503724506,0.7591,2683.9,2683.8,0.37251]
[1727503727421,0.3767,2683.9,2683.8,0.37251]
[1727503729717,0.6747,2683.9,2683.8,0.37251]
[1727503737332,0.6747,2683.9,2683.7,0.3879]
[1727503737727,0.6747,2683.9,2683.8,0.37251]
[1727503739132,0.6747,2683.9,2683.7,0.3879]
[1727503739329,0.6747,2683.9,2683.7,1.36481677]
[1727503739926,0.6747,2683.9,2683.7,0.97691677]
[1727503740136,0.6747,2683.9,2683.7,0.3912]
[1727503740137,0.75601,2683.8,2683.7,0.3912]
[1727503740728,0.37252,2683.7,2683.6,0.4027]
[1727503740927,0.37252,2683.7,2683.6,0.7939]
[1727503743727,0.37252,2683.7,2683.6,1.77081677]
[1727503744530,0.37252,2683.7,2683.6,0.7939]
[1727503744932,0.37252,2683.7,2683.6,1.77081677]
[1727503745230,0.37252,2683.7,2683.6,0.7939]
[1727503746435,2.20810014,2683.8,2683.6,0.7939]
[1727503746738,1.83558014,2683.8,2683.6,1.77081677]
[1727503746928,0.37252,2683.7,2683.6,1.77081677]
[1727503747329,0.37252,2683.7,2683.6,0.7939]
[1727503749331,0.37254,2683.6,2683.4,0.97691677]
[1727503749637,0.4045,2683.5,2683.4,0.97691677]
[1727503750432,0.77705,2683.5,2683.4,0.97691677]
[1727503750633,0.77705,2683.5,2683.3,2.12869677]
[1727503751737,0.4045,2683.5,2683.3,1.75611677]
[1727503751938,0.4045,2683.5,2683.3,2.12868677]
[1727503752946,0.77705,2683.5,2683.3,2.12868677]
[1727503753146,0.7871,2683.5,2683.3,2.12868677]
[1727503753444,0.2981,2683.4,2683.3,1.75611677]
[1727503753644,0.2981,2683.4,2683.2,0.97691677]
[1727503753645,0.67067,2683.4,2683.2,0.97691677]
[1727503753835,0.37258,2683.3,2683.1,0.757]
[1727503754035,1.75018014,2683.4,2683.1,1.73391677]
[1727503754344,0.67066,2683.4,2683.2,0.37259]
[1727503754539,0.2981,2683.4,2683.2,0.37259]
[1727503754936,0.2981,2683.4,2683.3,0.37258]
[1727503755132,0.2981,2683.4,2683.2,1.71258]
[1727503755338,0.2981,2683.4,2683.2,2.10828]
[1727503755741,0.2981,2683.4,2683.3,0.37258]
[1727503756040,0.2981,2683.4,2683.3,1.71258]
[1727503756242,0.2981,2683.4,2683.3,3.93711458]
[1727503756444,0.2981,2683.4,2683.3,4.42557296]
[1727503757143,0.2981,2683.4,2683.3,3.93654848]
[1727503757347,0.2981,2683.4,2683.3,2.96019781]
[1727503757547,0.2981,2683.4,2683.3,9.08342296]
[1727503757747,0.2981,2683.4,2683.3,6.68659781]
[1727503757939,3.2078,2683.7,2683.6,0.37254]
[1727503758140,3.2078,2683.7,2683.3,6.31401781]
[1727503758141,2.25208014,2683.9,2683.8,0.37251]
[1727503758339,0.8,2683.9,2683.8,0.37251]
[1727503758641,1.17249,2683.9,2683.7,0.37251]
[1727503758846,0.8,2683.9,2683.7,0.37251]
[1727503759153,0.8,2683.9,2683.8,0.4065]
[1727503759351,2.25208014,2683.9,2683.8,0.4065]
[1727503759543,2.62457014,2683.9,2683.8,0.4065]
[1727503759741,1.28569,2683.9,2683.8,0.4065]
[1727503759941,0.9132,2683.9,2683.8,0.77901]
[1727503760146,0.9132,2683.9,2683.8,0.4065]
[1727503760440,1.28569,2683.9,2683.8,0.4065]
[1727503760941,0.9132,2683.9,2683.8,0.4065]
[1727503761142,1.28569,2683.9,2683.8,0.4065]
[1727503761344,1.28569,2683.9,2683.8,0.77901]
[1727503761546,1.28569,2683.9,2683.8,0.4065]
[1727503761741,1.28569,2683.9,2683.8,0.77901]
[1727503761941,0.9132,2683.9,2683.8,0.77901]
[1727503762139,1.28569,2683.9,2683.8,0.77901]
[1727503762341,1.28569,2683.9,2683.8,0.4065]
[1727503762745,1.28569,2683.9,2683.8,0.77901]
[1727503762946,1.28569,2683.9,2683.8,0.4065]
[1727503763852,1.28569,2683.9,2683.8,0.77901]
[1727503764044,1.28569,2683.9,2683.8,0.4065]
[1727503766143,1.28569,2683.9,2683.7,0.37252]
[1727503766144,0.37251,2683.8,2683.7,0.37252]
[1727503766343,2.79408524,2683.8,2683.7,0.37252]
[1727503766748,1.34,2683.8,2683.7,0.37252]
[1727503767845,3.1667795,2683.8,2683.7,0.37252]
[1727503768040,2.7942695,2683.8,2683.7,0.37252]
[1727503769352,1.71251,2683.8,2683.7,0.37252]
[1727503769547,1.71251,2683.8,2683.6,0.76683]
[1727503769847,1.45429191,2683.7,2683.6,0.76683]
[1727503770756,1.82681191,2683.7,2683.5,0.76764]
[1727503770955,3.18319191,2683.6,2683.3,2.27158946]
[1727503771145,0.4081,2683.5,2683.4,0.37256]
[1727503772749,0.4081,2683.5,2683.3,0.7864]
[1727503772750,0.37256,2683.4,2683.3,2.13525946]
[1727503772944,0.37256,2683.4,2683.3,0.75087]
[1727503773144,1.82685191,2683.4,2683.3,0.3783]
[1727503773352,1.82685191,2683.4,2683.2,0.37258]
[1727503773543,0.3725,2683.3,2683.2,0.37258]
[1727503774845,0.3725,2683.3,2683.2,2.59606131]
[1727503775150,0.3725,2683.3,2683.2,1.34925089]
[1727503775354,0.3725,2683.3,2683.2,2.5960845]
[1727503777152,0.3725,2683.3,2683.2,1.34921847]
[1727503777555,0.4856,2683.3,2683.2,1.34921847]
[1727503778157,0.1131,2683.3,2683.2,1.34921847]
[1727503779247,0.1131,2683.3,2683.2,0.97663847]
[1727503779452,1.4531,2683.3,2683.2,0.97663847]
[1727503779759,1.82568,2683.3,2683.1,1.74432847]
[1727503781147,0.3771,2683.2,2683.1,1.74432847]
[1727503781343,2.08969,2683.2,2683.1,1.37173847]
[1727503781653,2.08969,2683.2,2683.1,0.3951]
[1727503781859,2.08969,2683.2,2683.0,4.94364847]
[1727503782042,2.08969,2683.2,2683.0,5.33734847]
[1727503782043,0.3951,2683.1,2683.0,5.33734847]
[1727503783553,0.3951,2683.1,2683.0,4.36071]
[1727503786550,0.76771,2683.1,2683.0,4.36071]
[1727503786851,0.3951,2683.1,2683.0,4.36071]
[1727503787452,0.76771,2683.1,2683.0,4.36071]
[1727503787760,0.76771,2683.1,2683.0,3.9881]
[1727503788153,0.3951,2683.1,2683.0,4.36072]
[1727503789256,0.76771,2683.1,2683.0,4.36072]
[1727503790160,0.3951,2683.1,2683.0,4.36072]
[1727503791156,0.3951,2683.1,2683.0,1.15292]
[1727503791558,0.76771,2683.1,2683.0,1.15292]
[1727503793558,0.3951,2683.1,2683.0,1.15292]
[1727503793861,0.76771,2683.1,2683.0,0.7803]
[1727503795058,0.3951,2683.1,2683.0,1.15292]
[1727503795467,1.7351,2683.1,2683.0,1.15292]
[1727503795851,0.3951,2683.1,2683.0,1.15292]
[1727503796168,1.4531,2683.3,2683.2,0.37259]
[1727503796464,1.82568,2683.3,2683.1,0.3726]
[1727503796961,1.82568,2683.3,2683.1,3.5804]
[1727503797167,1.82568,2683.3,2683.1,0.37261]
[1727503797462,1.4531,2683.3,2683.2,0.37259]
[1727503797671,0.1131,2683.3,2683.2,0.37259]
[1727503797962,0.1131,2683.3,2683.2,4.09979]
[1727503798160,1.4531,2683.3,2683.2,4.09979]
[1727503798356,1.4531,2683.3,2683.2,0.37259]
[1727503799362,1.4531,2683.3,2683.0,1.75693847]
[1727503799564,1.34,2683.1,2683.0,1.15292]
[1727503799764,2.79429191,2683.1,2682.5,0.97663847]
[1727503799966,0.37267,2682.6,2682.5,0.771]
[1727503800263,1.45190308,2682.8,2682.7,0.37266]
[1727503800468,3.51150308,2683.2,2682.7,4.5478]
[1727503800662,1.34,2683.2,2682.8,0.75014]
[1727503800965,1.34,2683.0,2682.9,0.3935]
[1727503801268,1.71262,2683.0,2682.9,0.3935]
[1727503802165,1.34,2683.0,2682.9,0.3935]
[1727503803465,5.0672,2683.0,2682.6,0.97663847]
[1727503803658,1.34,2682.7,2682.6,0.37267]
[1727503804064,1.34,2682.7,2682.5,2.12861847]
[1727503804262,1.34,2682.7,2682.5,1.15198]
[1727503804460,0.37267,2682.7,2682.5,0.3748]
[1727503804664,1.34,2682.6,2682.5,0.3748]
[1727503805467,1.34,2682.6,2682.5,0.74749]
[1727503805766,1.34,2682.6,2682.5,0.3748]
[1727503807169,1.34,2682.6,2682.5,0.74749]
[1727503807367,1.34,2682.6,2682.5,0.3748]
[1727503807963,1.34,2682.6,2682.5,0.74749]
[1727503808162,1.34,2682.6,2682.5,0.3748]
[1727503808364,1.82557,2682.6,2682.5,0.3748]
[1727503808560,1.4529,2682.6,2682.5,0.3748]
[1727503808754,1.4529,2682.6,2682.5,0.74749]
[1727503809170,1.82557,2682.6,2682.5,0.3748]
[1727503809362,1.4529,2682.6,2682.5,0.74749]
[1727503810066,1.4529,2682.6,2682.5,0.3748]
[1727503810264,1.82557,2682.6,2682.5,0.3748]
[1727503812371,8.3887,2682.6,2682.1,3.2078]
[1727503812669,8.3887,2682.6,2682.0,2.44107266]
[1727503812670,0.37274,2682.2,2682.0,0.37276]
[1727503812870,1.7188,2682.1,2682.0,0.37276]
[1727503813265,1.7188,2682.1,2681.6,1.95046748]
[1727503813266,5.4476,2682.1,2681.6,0.97663847]
[1727503813574,2.53919519,2682.6,2681.9,6.33167325]
[1727503813575,1.687,2682.5,2681.9,6.33167325]
[1727503813770,1.34,2682.5,2682.3,0.37271]
[1727503813971,1.34,2682.5,2682.1,5.52443847]
[1727503813972,1.71269,2682.5,2682.2,0.37272]
[1727503814269,1.34,2682.5,2682.4,0.3727]
[1727503814476,0.3727,2682.4,2682.2,0.7915]
[1727503814675,1.34,2682.3,2682.2,1.16423]
[1727503814870,1.34,2682.3,2682.2,0.7915]
[1727503815170,1.34,2682.3,2682.2,1.16423]
[1727503815368,1.34,2682.3,2682.2,0.7915]
[1727503816066,1.34,2682.3,2682.2,1.16423]
[1727503816271,1.34,2682.3,2682.2,0.7915]
[1727503816681,1.34,2682.3,2682.2,1.16423]
[1727503817466,1.34,2682.3,2682.2,0.7915]
[1727503817662,1.34,2682.3,2682.2,1.16423]
[1727503817861,1.34,2682.3,2681.8,6.01223419]
[1727503817862,5.068,2682.3,2681.8,0.97663847]
[1727503818068,1.34,2682.0,2681.6,0.97663847]
[1727503818275,1.34,2682.0,2681.8,0.3916]
[1727503818465,0.3737,2682.2,2682.0,0.37275]
[1727503819076,0.74643,2682.2,2682.0,0.37275]
[1727503819280,0.74643,2682.2,2681.9,0.74976]
[1727503819281,1.34,2682.1,2681.9,0.74976]
[1727503820272,1.34,2682.1,2681.9,0.74977]
[1727503820573,0.37276,2682.0,2681.9,0.377]
[1727503820967,4.10156,2682.0,2681.9,0.377]
[1727503821172,0.37277,2681.9,2681.8,0.3916]
[1727503821373,0.37277,2681.9,2681.8,0.76439]
[1727503821374,1.34,2681.9,2681.8,0.76439]
[1727503821879,1.34,2681.9,2681.8,0.3916]
[1727503822475,1.34,2681.9,2681.8,0.76439]
[1727503823285,1.34,2681.9,2681.8,0.3916]
[1727503823481,1.34,2681.9,2681.8,0.76439]
[1727503824576,1.34,2681.9,2681.8,0.3916]
[1727503825083,1.34,2681.9,2681.8,0.76439]
[1727503830083,1.34,2681.9,2681.8,0.3916]
[1727503830084,1.71277,2681.9,2681.8,0.3916]
[1727503830385,1.34,2681.9,2681.8,0.76439]
[1727503831087,1.4527,2681.9,2681.8,0.76439]
[1727503831587,1.82547,2681.9,2681.8,0.3916]
[1727503831780,1.4527,2681.9,2681.8,0.76439]
[1727503836779,1.82547,2681.9,2681.8,0.76439]
[1727503837687,1.4527,2681.9,2681.8,0.76439]
[1727503838983,1.82547,2681.9,2681.8,0.76439]
[1727503840385,0.48547,2681.9,2681.8,0.3916]
[1727503840691,1.82547,2681.9,2681.8,0.3916]
[1727503841286,1.4527,2681.9,2681.8,0.76439]
[1727503841992,1.82547,2681.9,2681.8,0.76439]
[1727503843589,1.4527,2681.9,2681.8,0.76439]
[1727503844481,1.82547,2681.9,2681.8,0.76439]
[1727503847786,1.82547,2681.9,2681.8,0.3916]
[1727503848991,1.82547,2681.9,2681.8,0.76439]
[1727503849192,0.37279,2681.8,2681.6,0.37281]
[1727503849389,1.34,2681.7,2681.6,0.37281]
[1727503849984,1.732,2681.8,2681.7,0.3728]
[1727503850188,1.732,2681.8,2681.5,0.7718]
[1727503850391,1.732,2681.8,2681.6,0.37281]
[1727503850792,1.34,2681.7,2681.6,0.37281]
[1727503853703,1.8383,2681.7,2681.6,0.37281]
[1727503861907,1.8383,2681.7,2681.6,1.34944847]
[1727503862306,3.66300308,2681.7,2681.5,2.12125847]
[1727503862504,0.37281,2681.6,2681.5,1.74843847]
[1727503862702,0.37281,2681.6,2681.4,4.18443847]
[1727503862703,0.37283,2681.5,2681.4,4.18443847]
[1727503862899,1.34,2681.5,2681.4,4.55727847]
[1727503863101,1.34,2681.5,2681.4,4.18443847]
[1727503863607,1.71283,2681.5,2681.4,4.18443847]
[1727503864006,1.71283,2681.5,2681.4,0.97663847]
[1727503864408,1.71283,2681.5,2681.3,2.24487419]
[1727503864603,1.71283,2681.5,2681.3,1.87203419]
[1727503864604,0.77524,2681.4,2681.3,1.87203419]
[1727503864803,0.77524,2681.4,2681.3,3.12350789]
[1727503865005,1.14394,2681.4,2681.3,3.12350789]
[1727503865200,1.14394,2681.4,2680.7,0.84568715]
[1727503865201,5.83901,2681.4,2680.7,0.84568715]
[1727503865400,5.83901,2681.4,2679.8,0.1]
[1727503865401,7.539,2680.8,2680.2,3.77141205]
[1727503865611,1.34,2680.3,2680.2,3.77141205]
[1727503865804,2.42669844,2680.4,2680.2,3.91296204]
[1727503866005,2.42669844,2680.4,2680.2,6.30917244]
[1727503866006,0.37299,2680.3,2680.2,6.30917244]
[1727503866207,3.76669844,2680.4,2680.2,3.91296204]
[1727503866401,8.65199,2680.3,2680.2,3.91296204]
[1727503866803,4.92079,2680.3,2680.2,3.91296204]
[1727503867003,3.58079,2680.3,2680.2,3.91296204]
[1727503867205,0.37299,2680.3,2680.2,3.91296204]
[1727503867414,0.1124,2680.3,2680.2,6.30917244]
[1727503868007,0.1124,2680.3,2680.2,8.07048244]
[1727503868206,2.42669844,2680.4,2680.3,0.37299]
[1727503868507,0.58479844,2680.4,2680.3,4.1092004]
[1727503868706,0.01,2680.8,2680.4,0.37297]
[1727503868906,0.01,2680.8,2680.7,2.3962104]
[1727503871709,0.38292,2680.8,2680.7,2.3962104]
[1727503872108,0.38292,2680.8,2680.4,0.37298]
[1727503872420,0.37297,2680.5,2680.4,2.3962104]
[1727503872605,6.1178,2680.6,2680.4,2.3962104]
[1727503872915,6.1178,2680.6,2680.2,0.4033]
[1727503873116,0.37298,2680.4,2680.2,2.7995104]
[1727503873315,0.37298,2680.4,2680.2,2.3962104]
[1727503873611,3.2078,2680.3,2680.2,2.3962104]
[1727503873812,3.28299,2680.4,2680.2,2.3962104]
[1727503876022,3.28299,2680.4,2680.3,2.3962104]
[1727503876023,0.37299,2680.4,2680.3,2.3962104]
[1727503876915,0.37299,2680.4,2680.0,0.57302]
[1727503877113,0.37299,2680.4,2680.2,2.3962104]
[1727503877114,0.37298,2680.4,2680.2,2.3962104]
[1727503877914,0.37299,2680.4,2680.2,2.3962104]
[1727503878118,0.37297,2680.5,2680.2,2.3962104]
[1727503878419,0.37299,2680.4,2680.3,2.3962104]
[1727503879224,3.28299,2680.4,2680.3,2.3962104]
[1727503879615,3.28299,2680.4,2680.0,0.57303]
[1727503879616,0.37301,2680.2,2680.0,0.2]
[1727503879812,0.37301,2680.2,2680.1,2.3962104]
[1727503880010,2.91,2680.2,2680.0,2.5962104]
[1727503880424,0.37302,2680.1,2680.0,0.2]
[1727503880717,1.68648,2680.1,2680.0,0.2]
[1727503882815,0.37302,2680.1,2680.0,0.2]
[1727503883613,3.28301,2680.2,2680.0,0.2]
[1727503883814,0.7741,2680.3,2680.1,2.7692204]
[1727503884122,2.91,2680.4,2680.2,2.8007104]
[1727503884311,3.2078,2680.6,2680.3,2.3962104]
[1727503884517,3.2078,2680.6,2680.5,2.3962104]
[1727503884518,3.58075,2680.6,2680.5,2.3962104]
[1727503885811,4.51314,2680.6,2680.5,2.3962104]
[1727503886018,3.58075,2680.6,2680.5,2.3962104]
[1727503886321,0.37299,2680.4,2680.2,0.4045]
[1727503886525,3.2078,2680.3,2680.2,2.8007104]
[1727503886918,3.2078,2680.3,2680.2,3.1737204]
[1727503887430,2.91,2680.4,2680.2,3.1737204]
[1727503887730,2.91,2680.4,2680.3,2.3962104]
[1727503888524,2.91,2680.4,2680.3,2.7692004]
[1727503889031,2.91,2680.4,2680.3,2.3962104]
[1727503889425,2.91,2680.6,2680.3,2.7692004]
[1727503889626,3.28296,2680.6,2680.5,2.3962104]
[1727503890527,2.91,2680.6,2680.5,2.3962104]
[1727503891436,3.28295,2680.6,2680.5,2.3962104]
[1727503891624,0.37298,2680.5,2680.2,0.77751]
[1727503891821,2.91,2680.4,2680.2,0.77751]
[1727503892128,6.1178,2680.4,2680.2,0.4045]
[1727503892329,6.49078,2680.4,2680.3,2.3962104]
[1727503893323,3.2078,2680.4,2680.3,2.7692004]
[1727503893532,3.28296,2680.6,2680.3,2.7692004]
[1727503893734,0.37297,2680.5,2680.3,0.37299]
[1727503893930,0.37297,2680.5,2680.4,0.4046]
[1727503894137,0.37297,2680.5,2680.4,2.8008104]
[1727503897234,3.28296,2680.6,2680.4,2.8008104]
[1727503897535,3.28296,2680.6,2680.5,2.3962104]
[1727503899139,5.18063824,2680.6,2680.5,2.3962104]
[1727503899938,4.21535,2680.6,2680.5,2.3962104]
[1727503900329,5.66328237,2680.6,2680.5,2.3962104]
[1727503900725,0.37301,2680.2,2680.1,0.379]
[1727503900931,3.58081,2680.2,2680.1,0.379]
[1727503901130,3.58081,2680.2,2680.1,2.7752104]
[1727503901437,3.2078,2680.2,2680.1,2.7752104]
[1727503901629,3.58081,2680.2,2680.1,2.7752104]
[1727503902133,3.58081,2680.2,2680.0,0.97524]
[1727503902134,0.37302,2680.1,2680.0,0.2]
[1727503902324,0.37302,2680.1,2680.0,2.5962104]
[1727503902325,3.28302,2680.1,2680.0,2.5962104]
[1727503903234,2.91,2680.1,2680.0,2.5962104]
[1727503903434,3.28302,2680.1,2680.0,2.5962104]
[1727503903929,2.91,2680.1,2680.0,2.5962104]
[1727503904136,3.28302,2680.1,2680.0,2.5962104]
[1727503904532,4.24797123,2680.1,2680.0,2.5962104]
[1727503904739,3.28302,2680.1,2680.0,2.5962104]
[1727503905038,4.24797123,2680.1,2680.0,2.5962104]
[1727503905242,3.28302,2680.1,2680.0,2.5962104]
[1727503905434,4.73044685,2680.1,2680.0,2.5962104]
[1727503907745,4.73044685,2680.1,2680.0,0.2]
[1727503907942,5.13014685,2680.1,2680.0,0.2]
[1727503908137,2.22014685,2680.1,2680.0,0.2]
[1727503908343,2.11272,2680.1,2680.0,0.2]
[1727503909747,4.04956873,2680.1,2680.0,0.2]
[1727503910144,4.04957085,2680.1,2680.0,0.2]
[1727503911049,4.04957085,2680.1,2680.0,2.5962104]
[1727503912038,2.11272,2680.1,2680.0,2.5962104]
[1727503913145,1.93657642,2680.1,2680.0,7.1440104]
[1727503913451,2.30847928,2680.3,2680.0,6.5969104]
[1727503913641,2.68146928,2680.3,2680.2,2.3962104]
[1727503914334,1.34,2680.3,2680.2,2.7692204]
[1727503914539,2.30847279,2680.3,2680.2,2.7692204]
[1727503914743,2.79271892,2680.3,2680.2,2.7692204]
[1727503914942,3.16570892,2680.3,2680.2,2.3962104]
[1727503915748,2.79271892,2680.3,2680.2,2.7692204]
[1727503916248,1.45271892,2680.3,2680.2,2.7692204]
[1727503916446,1.45271892,2680.3,2680.2,2.3962104]
[1727503916844,0.37299,2680.3,2680.2,2.3962104]
[1727503917347,1.93657642,2680.4,2680.2,2.7692204]
[1727503917348,2.30956642,2680.4,2680.2,2.7692204]
[1727503917648,2.77957906,2680.4,2680.3,2.3962104]
[1727503918949,2.40659906,2680.4,2680.3,2.3962104]
[1727503919151,2.77957906,2680.4,2680.3,2.7769104]
[1727503919351,2.40659906,2680.4,2680.3,2.7769104]
[1727503919549,5.31659906,2680.5,2680.3,3.1499004]
[1727503919747,5.31659906,2680.5,2680.4,2.7731104]
[1727503919948,5.31659906,2680.5,2680.4,3.5187904]
[1727503920154,2.40659906,2680.5,2680.4,3.5187904]
[1727503920741,2.40659906,2680.6,2680.4,3.5187804]
[1727503920946,2.40659906,2680.6,2680.4,0.7496]
[1727503920947,2.77954906,2680.6,2680.4,0.7496]
[1727503921147,2.77954906,2680.6,2680.5,2.3962104]
[1727503921342,2.40659906,2680.6,2680.5,2.3962104]
[1727503921551,2.77954906,2680.6,2680.5,2.3962104]
[1727503922055,2.40659906,2680.6,2680.5,2.3962104]
[1727503922353,2.77954906,2680.6,2680.5,2.3962104]
[1727503923655,2.40659906,2680.6,2680.5,2.3962104]
[1727503923955,2.77954906,2680.6,2680.5,2.3962104]
[1727503924757,2.31112437,2680.6,2680.5,2.3962104]
[1727503924955,2.31112582,2680.6,2680.5,2.3962104]
[1727503925260,2.31107272,2680.6,2680.5,2.3962104]
[1727503925556,0.37295,2680.6,2680.5,2.3962104]
[1727503925755,5.98733906,2680.7,2680.5,2.3962104]
[1727503925955,5.98733906,2680.7,2680.6,2.3962104]
[1727503927059,0.37297,2680.5,2680.4,0.7496]
[1727503927259,5.22095499,2680.5,2680.4,3.1458104]
[1727503927659,3.28297,2680.5,2680.4,3.1458104]
[1727503928761,5.22060994,2680.5,2680.4,3.1458104]
[1727503928951,5.22062064,2680.5,2680.4,3.1458104]
[1727503929266,3.28297,2680.5,2680.4,3.1458104]
[1727503929672,5.68956906,2680.5,2680.4,3.1458104]
[1727503931069,5.31659906,2680.5,2680.4,3.1458104]
[1727503931273,0.37296,2680.6,2680.5,0.37297]
[1727503931274,1.93796885,2680.6,2680.5,0.37297]
[1727503931620,0.96910137,2680.7,2680.6,2.7691604]
[1727503931774,0.96910137,2680.7,2680.6,3.8081604]
[1727503931980,2.43277501,2680.8,2680.7,0.37294]
[1727503932269,1.46370073,2680.8,2680.7,2.7691504]
[1727503932862,0.01,2680.8,2680.7,2.7691504]
[1727503935382,1.46257906,2680.8,2680.7,8.7691504]
[1727503935870,4.50086,2681.3,2680.7,11.6040104]
[1727503935871,6.53459906,2681.3,2680.7,11.6040104]
[1727503936073,7.61285,2681.4,2681.2,2.3962104]
[1727503936074,2.77944906,2681.4,2681.2,2.3962104]
[1727503936279,2.77944906,2681.4,2681.3,3.1768104]
[1727503936483,0.37285,2681.4,2681.3,3.1768104]
[1727503937269,0.75705,2681.4,2681.3,3.1768104]
[1727503938177,2.09705,2681.4,2681.3,3.1768104]
[1727503938867,5.61439906,2681.6,2681.3,3.1768104]
[1727503939076,3.2078,2681.6,2681.5,2.3962104]
[1727503939266,2.79079906,2681.7,2681.5,2.3962104]
[1727503939472,1.34,2681.8,2681.6,2.3962104]
[1727503939473,1.71279,2681.8,2681.6,2.3962104]
[1727503939674,6.01279906,2681.9,2681.7,2.7690104]
[1727503939874,0.4053,2682.0,2681.8,2.8020104]
[1727503940075,0.4053,2682.0,2681.8,0.7791]
[1727503940076,1.34,2681.9,2681.8,0.7791]
[1727503940283,2.30659372,2681.9,2681.8,0.7791]
[1727503940480,0.96659372,2681.9,2681.8,3.1753104]
[1727503940873,3.08465372,2682.0,2681.8,3.1753104]
[1727503941070,0.96659372,2682.0,2681.9,2.7689804]
[1727503941276,4.91962372,2682.2,2681.9,2.7689804]
[1727503941473,1.34,2682.1,2681.9,0.37277]
[1727503941676,1.34,2682.1,2681.8,1.15188]
[1727503941879,1.34,2682.1,2682.0,2.3962104]
[1727503942180,1.74959372,2682.3,2682.0,2.7689704]
[1727503942376,0.4053,2682.3,2682.2,2.3962104]
[1727503942574,0.77802,2682.3,2682.2,2.3962104]
[1727503943175,0.4053,2682.3,2682.2,2.3962104]
[1727503943575,3.2078,2682.4,2682.2,2.3962104]
[1727503943878,3.2078,2682.4,2682.3,2.7926104]
[1727503944279,3.3049,2682.6,2682.3,2.7926104]
[1727503944581,0.37277,2681.9,2681.8,0.4058]
[1727503944779,0.37277,2681.9,2681.5,0.37282]
[1727503944973,1.53569,2681.8,2681.4,1.53184]
[1727503945173,1.53569,2681.8,2681.4,2.55483]
[1727503945379,1.53569,2681.8,2681.7,2.3962104]
[1727503946777,1.53569,2681.8,2681.4,0.38]
[1727503946778,0.37282,2681.6,2681.4,0.38]
[1727503946973,3.58062,2681.6,2681.2,1.023]
[1727503947182,3.58062,2681.6,2681.5,2.3962104]
[1727503947482,0.37287,2681.2,2680.8,0.37292]
[1727503947682,0.7912,2681.1,2680.8,1.15172]
[1727503947883,0.7912,2681.1,2680.9,1.0719]
[1727503948080,0.7912,2681.1,2681.0,2.7691104]
[1727503948282,3.28286,2681.3,2681.0,2.7691104]
[1727503948283,2.91,2681.3,2681.0,2.7691104]
[1727503948486,3.58065,2681.4,2681.2,2.3962104]
[1727503948684,3.2078,2681.4,2681.3,2.3962104]
[1727503948992,3.58064,2681.4,2681.3,2.3962104]
[1727503950787,3.2078,2681.4,2681.3,2.3962104]
[1727503952077,3.58064,2681.4,2681.3,2.3962104]
[1727503952391,3.2078,2681.4,2681.3,2.3962104]
[1727503952982,0.7912,2681.5,2681.3,2.3962104]
[1727503952983,0.7912,2681.5,2681.3,2.7690604]
[1727503953186,1.33940372,2681.7,2681.4,2.3962104]
[1727503953389,1.74580372,2681.7,2681.5,2.3962104]
[1727503954081,1.74580372,2681.7,2681.6,2.3962104]
[1727503954787,0.77921,2681.7,2681.6,2.3962104]
[1727503954978,6.892,2681.8,2681.6,2.3962104]
[1727503954979,3.5936,2681.8,2681.6,2.3962104]
[1727503955289,3.5936,2681.8,2681.4,0.7383]
[1727503955290,3.96639,2681.8,2681.7,2.3962104]
[1727503956080,6.5036,2681.8,2681.0,3.2078]